Cogmind - Beta 15 @@@ ROGUE MODE // 2025.05.22 @ 18:39:56 Player: jumpy Result: Destroyed by Y-45 Defender with Heavy Assault Rifle Performance ------------- Evolutions (2) 1000 Regions Visited (4) 800 Robots Destroyed (58) 290 Value Destroyed (1551) 1551 Prototype IDs (4) 80 Alien Tech Used (0) 0 Bonus (0) 0 TOTAL SCORE: 3721 Bonus ------- None Cogmind --------- Core Integrity 0/550 Matter 239/300 Energy 100/100 System Corruption 14% Temperature Cool (9) Movement Core (700) Ox13 Location -8/Storage Parts ------- > --- POWER (1) -------- (None) > --- PROPULSION (4) --- (None) > --- UTILITY (4) ------ High-capacity Storage Unit > --- WEAPON (2) ------- (None) > --- INVENTORY (20) --- Cooled Ion Engine Cooled Ion Engine Improved Heat Sink Particle Cannon Peak State ------------ > --- POWER ------------ Cooled Ion Engine > --- PROPULSION ------- Light Treads Light Treads Light Treads > --- UTILITY ---------- High-capacity Storage Unit Improved Sensor Array Hacking Suite Drone Bay > --- WEAPON ----------- Ion Burst Cannon Improved Assault Rifle > --- INVENTORY -------- Cooled Ion Engine Cooled Ion Engine Improved Heat Sink Particle Cannon [Rating: 28] Favorites ----------- Power Light Nuclear Core Engine Reinforced Ion Engine Power Core Light Nuclear Core Propulsion Light Treads Treads Light Treads Utility Hacking Suite Device Seismic Detector Storage Small Storage Unit Hackware Hacking Suite Protection Medium Armor Plating Weapon Light Cannon Energy Gun Pulse Rifle Energy Cannon Particle Cannon Ballistic Gun Light Assault Rifle Ballistic Cannon Light Cannon Launcher Rocket Launcher Special Weapon Mining Laser Build | -11 -10 -9 -8 -8 ------- Run | Yrd Mat Mat Mat Sto Slots Evolved 4 | . . 2 2 . Power . | . . . . . Propulsion 2 | . . . 2 . Utility 2 | . . 2 . . Weapon . | . . . . . Parts Attached 43 | 8 5 21 5 4 Power 7 | 2 1 1 2 1 Engine 6 | 2 . 1 2 1 Core 1 | . 1 . . . Reactor . | . . . . . Propulsion 9 | 2 . 6 1 . Treads 9 | 2 . 6 1 . Leg . | . . . . . Wheel . | . . . . . Hover . | . . . . . Flight . | . . . . . Utility 14 | 2 2 7 1 2 Device 8 | 1 1 3 1 2 Storage 4 | 1 1 2 . . Processor . | . . . . . Hackware 1 | . . 1 . . Protection 1 | . . 1 . . Artifact . | . . . . . Weapon 13 | 2 2 7 1 1 Energy Gun 4 | . . 4 . . Energy Cannon 2 | . . 1 . 1 Ballistic Gun 3 | 2 . 1 . . Ballistic Cannon 2 | . 2 . . . Launcher 1 | . . . 1 . Special Weapon 1 | . . 1 . . Impact Weapon . | . . . . . Slashing Weapon . | . . . . . Piercing Weapon . | . . . . . Special Melee Weapon . | . . . . . Unidentified Prototypes 4 | . . 2 . 2 Parts Lost 24 | . 1 5 9 9 Power 3 | . . . 2 1 Propulsion 7 | . . 2 2 3 Utility 8 | . 1 2 2 3 Weapon 6 | . . 1 3 2 Highest Loss Streak 8 | . 1 3 8 8 To Critical Strikes . | . . . . . Average Backups 8 | 3 7 8 9 3 Power 1 | . 1 1 2 1 Propulsion 2 | 1 2 3 2 . Utility . | . 2 . . 1 Weapon 2 | 1 2 3 3 1 Tool/Special . | . . . . . Unused Backups 12 | . 2 6 . 4 Power 3 | . . . . 3 Propulsion 5 | . 1 4 . . Utility 1 | . . . . 1 Weapon 3 | . 1 2 . . Tool/Special . | . . . . . Average Slot Usage (%) 93 | . 94 96 91 69 Engine 5 | . 7 3 8 8 Core 5 | . 6 7 . . Treads 25 | . 28 21 34 24 Device 12 | . 8 16 7 7 Storage 11 | . 14 11 9 9 Hackware 7 | . . 11 9 6 Protection 2 | . . 2 5 . Energy Gun 8 | . . 13 14 . Ballistic Gun 1 | . 3 . . 8 Ballistic Cannon 10 | . 24 6 . . Peak Build Rating 28 | 7 10 23 23 28 Average Rating 14 | 5 8 17 19 18 On Entrance 9 | . 7 10 18 11 Naked Turns . | . . . . . Heaviest Build 66 | 13 17 64 64 66 Greatest Support 80 | 40 40 40 80 80 Greatest Overweight (x) 1 | . . 1 1 1 Average Overweight (x) . | . . . . . Largest Inventory Capacity 20 | 8 8 20 20 20 Average Capacity 12 | 7 8 11 20 20 Most Carried 11 | 7 8 10 11 5 Average Carried 8 | 3 7 9 8 3 Final Capacity 20 | 8 8 20 20 20 Final Carried 10 | 7 8 10 5 4 Class Distribution -------------------- 64% | Mutant 35% | Scavenger-Mutant Dominant Class ---------------- Mutant | -10/Materials Scavenger-Mutant | -9/Materials Mutant | -8/Materials Mutant | -8/Storage Resources | -11 -10 -9 -8 -8 ----------- Run | Yrd Mat Mat Mat Sto Matter Collected 1115 | 295 212 441 76 91 Remotely . | . . . . . Salvage Created 1725 | 153 322 925 169 156 Parts 116 | 16 33 48 6 13 Haulers Intercepted 5 | . 1 4 . . Recyclers Shooed 1 | . . . 1 . Parts Field Recycled . | . . . . . Retrieved Matter . | . . . . . Parts Self-Destructed . | . . . . . Prevented . | . . . . . Kills | -11 -10 -9 -8 -8 ------- Run | Yrd Mat Mat Mat Sto Combat Hostiles Destroyed 41 | . 11 19 5 6 Melee 3 | . . . . 3 Guns 19 | . 1 13 4 1 Cannons 17 | . 10 5 . 2 Classes Destroyed 12 | 2 5 4 1 . Worker 2 | . . 1 1 . Builder 2 | . . 2 . . Tunneler 4 | 4 . . . . Hauler 5 | . 1 4 . . Recycler 1 | 1 . . . . Operator 1 | . 1 . . . Watcher 2 | . 2 . . . Swarmer 10 | . 3 5 . 2 Grunt 19 | . 8 6 3 2 Duelist 2 | . . 1 . 1 Sentry 9 | . . 7 1 1 Hunter 1 | . . . 1 . Best Kill Streak 5 | 2 3 4 3 5 Combat Bots Only 5 | . 3 4 3 5 Max Kills in Single Turn 2 | 1 1 1 1 2 Gunslinging . | . . . . . Exploded . | . . . . . Melee 1 | . . . . 1 Uniques/NPCs Destroyed . | . . . . . Combat | -11 -10 -9 -8 -8 -------- Run | Yrd Mat Mat Mat Sto Hostile Shots Fired 337 | . 55 107 63 112 Missed 86 | . 19 32 20 15 Hits 251 | . 36 75 43 97 Melee 5 | . . 4 . 1 Projectile 246 | . 36 71 43 96 Critical Strikes 9 | . . 2 2 5 Damage Taken 3932 | . 377 946 1301 1308 Core 779 | . 49 177 88 465 Absorbed by Shields . | . . . . . Core Remaining (%) 78 | 100 80 55 . . Volleys Fired 173 | 9 47 73 37 7 Largest 2 | 2 2 2 2 2 Hottest 126 | 40 60 126 126 123 Shots Fired 310 | 18 94 134 54 10 Gun 171 | 18 18 90 38 7 Cannon 118 | . 76 36 3 3 Launcher 6 | . . . 6 . Special 15 | . . 8 7 . Kinetic 151 | 18 94 28 4 7 Thermal 107 | . . 60 44 3 Explosive 6 | . . . 6 . Electromagnetic 46 | . . 46 . . Robot Hit Streak 12 | 4 11 12 10 3 Robot Miss Streak 4 | 2 3 4 2 2 Penetration Max . | . . . . . Secondary Targets 5 | . . 4 1 . Max Gunslinging Chain 1 | . . 1 1 . Shots Hit Robots 202 | 11 57 92 35 7 Core Hits 82 | 8 22 37 10 5 Critical Kills . | . . . . . Critical Parts Destroyed . | . . . . . Critical Strikes 7 | . 1 2 4 . Burn 6 | . . 2 4 . Blast 1 | . 1 . . . Melee Attacks . | . . . . . Impact . | . . . . . Slashing . | . . . . . Piercing . | . . . . . Sneak Attacks . | . . . . . Combat Hostiles . | . . . . . Follow-up Attacks . | . . . . . Damage Inflicted 3672 | 92 867 1842 652 219 Guns 2072 | 92 88 1299 516 77 Cannons 1263 | . 765 370 . 128 Explosions 282 | . . 170 112 . Melee . | . . . . . Ramming 55 | . 14 3 24 14 Kinetic 1357 | 92 853 308 27 77 Thermal 1374 | . . 757 489 128 Explosive 112 | . . . 112 . Electromagnetic 774 | . . 774 . . Impact . | . . . . . Slashing . | . . . . . Piercing . | . . . . . Highest Corruption 14 | . 1 . 14 14 Average Corruption 4 | . 1 . 12 14 Corruption Purged . | . . . . . Corruption Blocked . | . . . . . Effects 20 | . 6 . 3 11 Message Errors 6 | . 3 . . 3 Matter Fused 3 | . 1 . 1 1 Heat Flow Errors 4 | . . . 2 2 Energy Discharges 1 | . 1 . . . Parts Rejected 1 | . . . . 1 Data Loss (minor) 5 | . 1 . . 4 Overload Shots . | . . . . . Overflow Damage 15 | . 7 7 . 1 Projectiles 8 | . 7 . . 1 Explosions 7 | . . 7 . . Melee . | . . . . . Knockbacks 12 | . 9 3 . . Impact 1 | . 1 . . . Kinetic 11 | . 8 3 . . Secondary . | . . . . . Self-Inflicted Damage 104 | . . 60 44 . Shots 4 | . . 2 2 . Rammed 15 | . 7 3 3 2 Targets Rammed 18 | . 7 3 3 5 Kicked . | . . . . . Crushed 3 | . . . . 3 Highest Temperature 275 | . 36 238 275 253 Average Temperature 71 | . 10 66 123 95 Received Heat Transfer 1029 | . 159 240 207 423 Effects 1 | . . 1 . . Energy Bleed 1 | . . 1 . . Siege Activations . | . . . . . Martial Activations . | . . . . . Shielding Activations . | . . . . . Robots Disrupted . | . . . . . Combat Hostiles . | . . . . . Robots Corrupted 1 | . . 1 . . Combat Hostiles 1 | . . 1 . . Parts Fried 8 | . . 8 . . Impact Corruptions . | . . . . . Robots Melted 1 | . . . 1 . Combat Hostiles 1 | . . . 1 . Parts Melted 4 | . . 2 2 . Heat Transferred 3225 | . . 1706 1369 150 Parts Sabotaged . | . . . . . Parts Stolen . | . . . . . Parts Stripped . | . . . . . Power Chain Reactions 3 | . . 3 . . Alert | -11 -10 -9 -8 -8 ------- Run | Yrd Mat Mat Mat Sto Maximum Alert Level . | . . . . . Low Security (%) 100 | 100 100 100 100 100 Level 1 . | . . . . . Level 2 . | . . . . . Level 3 . | . . . . . Level 4 . | . . . . . Level 5 . | . . . . . High Security . | . . . . . Max Security . | . . . . . Peak Influence 188 | 10 118 188 90 115 Initial 76 | . . . 76 14 Average 46 | 1 31 64 42 25 Influence Increases 1454 | 25 366 655 231 177 Destroy 0b10 Robot/C 820 | . 220 380 100 120 Destroy 0b10 Robot/NC 85 | 25 20 35 5 . Destroy Leader 234 | . 56 118 30 30 Successful Hack 47 | . 20 15 . 12 Disable Machine 60 | . 45 . . 15 Destroy Structure 58 | . 5 17 36 . Lose Combat Pursuer 150 | . . 90 60 . Influence Decreases 1439 | 25 366 473 379 196 Entered New Map 126 | . . . 106 20 Time Decay 1108 | 25 356 433 198 96 Lost Part 205 | . 10 40 75 80 Squads Dispatched 6 | . 2 2 1 1 Investigation 1 | . . 1 . . Extermination . | . . . . . Reinforcement 5 | . 2 1 1 1 Assault . | . . . . . Garrison . | . . . . . Intercept . | . . . . . Searches Triggered . | . . . . . Construction Impeded . | . . . . . Haulers Reinforced . | . . . . . Active Scanning Responses . | . . . . . Cargo Convoy Interrupts . | . . . . . Stealth | -11 -10 -9 -8 -8 --------- Run | Yrd Mat Mat Mat Sto Distress Signals 3 | . . 2 1 . Communications Jammed . | . . . . . Distress Signals . | . . . . . Times Spotted 68 | . 15 35 8 10 Peak Tracking Total 6 | . 4 6 5 5 Tactical Retreats 5 | . . 4 1 . Traps | -11 -10 -9 -8 -8 ------- Run | Yrd Mat Mat Mat Sto Traps Triggered 2 | . 1 1 . . Indirectly . | . . . . . Trap Hack Attempts . | . . . . . Triggered . | . . . . . Disarmed . | . . . . . Reprogrammed . | . . . . . Reused . | . . . . . Traps Extracted . | . . . . . Installed . | . . . . . Triggered . | . . . . . Machines | -11 -10 -9 -8 -8 ---------- Run | Yrd Mat Mat Mat Sto Machines Disabled 4 | . 3 . . 1 Max in Single Turn 1 | . 1 . . 1 Machines Repaired . | . . . . . Machines Dismantled . | . . . . . Machines Sabotaged . | . . . . . Overloaded Fab Kills . | . . . . . Hacking | -11 -10 -9 -8 -8 --------- Run | Yrd Mat Mat Mat Sto Machines Accessed 16 | . 6 7 . 3 Terminals 14 | . 6 5 . 3 Fabricators . | . . . . . Repair Stations . | . . . . . Recycling Units . | . . . . . Scanalyzers 2 | . . 2 . . Garrison Access . | . . . . . Total Hacks 26 | . 8 14 . 4 Successful 19 | . 6 10 . 3 Failed 7 | . 2 4 . 1 Catastrophic 1 | . 1 . . . Database Lockouts . | . . . . . Manual 16 | . 8 8 . . Terminals 20 | . 8 8 . 4 Fabricators . | . . . . . Repair Stations . | . . . . . Recycling Units . | . . . . . Scanalyzers 6 | . . 6 . . Garrison Access . | . . . . . Terminal Hacks 3 | . . . . 3 Open Door 3 | . . . . 3 Fabricator Hacks . | . . . . . Repair Station Hacks . | . . . . . Recycling Unit Hacks . | . . . . . Scanalyzer 5 | . . 5 . . Insert Component 3 | . . 3 . . Analyze 2 | . . 2 . . Garrison Access Hacks . | . . . . . Unauthorized Hacks 11 | . 6 5 . . Terminals 11 | . 6 5 . . Botnet 1 | . 1 . . . Skim 10 | . 5 5 . . Fabricators . | . . . . . Repair Stations . | . . . . . Recycling Units . | . . . . . Scanalyzers . | . . . . . Garrison Access . | . . . . . Data Cores Recovered . | . . . . . Used . | . . . . . Hacking Detections 6 | . 3 3 . . Full Trace Events . | . . . . . Feedback Events . | . . . . . Feedback Blocked . | . . . . . Robot Schematics Acquired . | . . . . . Robots Built . | . . . . . Authchips . | . . . . . Time . | . . . . . Total Robot Build Rating . | . . . . . Part Schematics Acquired 2 | . . 2 . . Parts Built . | . . . . . Authchips . | . . . . . Time . | . . . . . Total Part Build Rating . | . . . . . Parts Repaired . | . . . . . Time . | . . . . . Parts Recycled . | . . . . . Recycled Matter . | . . . . . Retrieved Matter . | . . . . . Retrieved Components . | . . . . . Parts Scanalyzed 3 | . . 3 . . Part Schematics Acquired 2 | . . 2 . . Parts Damaged 1 | . . 1 . . Bothacking | -11 -10 -9 -8 -8 ------------ Run | Yrd Mat Mat Mat Sto Used RIF Installer . | . . . . . Robots Hacked . | . . . . . Non-combat . | . . . . . Combat . | . . . . . Robot Hacks Applied . | . . . . . Relay Couplers Released . | . . . . . Fabnet Peak Effective % . | . . . . . Robots Rewired . | . . . . . Allies Hacked . | . . . . . Hacks Repelled . | . . . . . Allies | -11 -10 -9 -8 -8 -------- Run | Yrd Mat Mat Mat Sto Total Allies . | . . . . . Largest Group . | . . . . . Highest-Rated Group . | . . . . . Highest-Rated Ally . | . . . . . Total Orders . | . . . . . Ally Attacks . | . . . . . Total Damage . | . . . . . Kills . | . . . . . Allies Corrupted . | . . . . . Allies Melted . | . . . . . Intel | -11 -10 -9 -8 -8 ------- Run | Yrd Mat Mat Mat Sto Active Infowar (turns) 1826 | 77 676 921 . 152 Sensors 152 | . . . . 152 Terrain 866 | . . 866 . . Seismic 1674 | 77 676 921 . . Robot Analysis Total . | . . . . . Derelict Logs Recovered . | . . . . . Drone Launches . | . . . . . Drone Recoveries . | . . . . . Exploration | -11 -10 -9 -8 -8 ------------- Run | Yrd Mat Mat Mat Sto Turns Passed 3839 | 185 1129 1769 489 267 Spaces Moved 1782 | 99 573 816 197 97 Core 12 | 12 . . . . Treads 1770 | 87 573 816 197 97 Legs . | . . . . . Wheels . | . . . . . Hover . | . . . . . Flight . | . . . . . Fastest Speed 50 | 50 160 160 160 160 Average Speed 166 | 146 160 172 163 180 Slowest Speed 240 | 160 160 240 240 240 Overloaded Moves . | . . . . . Propulsion Burnouts . | . . . . . Robots Hopped . | . . . . . Potential Cave-ins 4 | . . . 4 . Cave-ins Triggered 2 | . . . 2 . Exploration Rate (%) 40 | 6 85 71 16 22 Regions Visited 4 Branch Regions 1 Pre-discovered Areas 2 | . . 2 . . Known Exits Taken 3 | . 1 1 1 . Unknown Exits Taken 1 | 1 . . . . Scrap Searched . | . . . . . Spaces Dug 32 | . . 8 24 . Terrain Destroyed 67 | . . 13 54 . Melee . | . . . . . Projectile 16 | . . 8 8 . AOE 51 | . . 5 46 . Terrain Rammed . | . . . . . Walls Destroyed . | . . . . . Machines Disabled . | . . . . . Actions | -11 -10 -9 -8 -8 --------- Run | Yrd Mat Mat Mat Sto Total 2304 | 121 690 1030 294 169 Wait 225 | . 51 78 45 51 Move 1777 | 98 572 815 195 97 Hop . | . . . . . Pick Up 32 | 6 4 18 2 2 Fast Attach 12 | 7 . 2 . 3 Attach 15 | . 1 6 6 2 Detach . | . . . . . Swap 27 | 1 5 17 3 1 Drop 24 | . 3 18 2 1 Fire 173 | 9 47 73 37 7 Melee . | . . . . . Ram . | . . . . . Kick . | . . . . . Crush 18 | . 7 3 3 5 Escape Stasis 1 | . . . 1 . Rewire . | . . . . . Trap . | . . . . . Miscellaneous . | . . . . . Route ------- -11/Scrapyard -10/Materials (discovered 5 exits: *Mat x3 / [*Min] / Sub) -9/Materials (discovered 4 exits: *Mat x3 / [*Min]) -8/Materials (discovered 2 exits: *Sto x2) -8/Storage History --------- Turn | Location | Event 3 | -11/Scrapyard | Discovered new exit (range 16) 186 | -11/Scrapyard | Entered Materials 311 | -10/Materials | Discovered new exit (range 12) 321 | -10/Materials | Build established: Mutant 690 | -10/Materials | Discovered new exit (range 6) 994 | -10/Materials | Identified exit to Materials 1059 | -10/Materials | Identified exit to Subcaves 1079 | -10/Materials | Learned Storage terminal intel 1091 | -10/Materials | Learned location of 1 exit from Recycling 1111 | -10/Materials | Learned 4 Recycling zone layouts 1140 | -10/Materials | Loaded intel: 1 repair station location 1180 | -10/Materials | Learned Storage non-interactive machine intel 1315 | -10/Materials | Entered another Materials area 1315 | -9/Materials | Evolved 2 slots: Utility x2 1316 | -9/Materials | Identified exit to Materials 1605 | -9/Materials | Build established: Scavenger-Mutant 1990 | -9/Materials | Discovered new exit (range 6) 2267 | -9/Materials | Lost 3 parts (1n1u1w) 2893 | -9/Materials | Build established: Mutant 2918 | -9/Materials | Learned location of Mines (-9) 2984 | -9/Materials | Loaded intel: 18 trap records 3084 | -9/Materials | Entered another Materials area 3084 | -8/Materials | Evolved 2 slots: Propulsion x2 3085 | -8/Materials | Identified exit to Storage 3496 | -8/Materials | Crushed by falling debris 3520 | -8/Materials | Crushed by falling debris 3520 | -8/Materials | System corruption reached 10% 3573 | -8/Materials | Entered Storage 3574 | -8/Storage | Loaded intel: 24 non-interactive machine locations 3575 | -8/Storage | Loaded intel: 15 terminal locations 3597 | -8/Storage | Lost 8 parts (2p2n1u3w) 3820 | -8/Storage | Core integrity fell below 50% 3835 | -8/Storage | Core integrity fell below 20% 3840 | -8/Storage | Destroyed by Y-45 Defender with Heavy Assault Rifle Last Messages --------------- 03800_ K-01 Serf cleans the Terminal. 03804_ K-01 Serf collects debris. 03813_ System corrupted: Matter fused (-9). 03814_ K-01 Serf collects debris. 03816_ Lgt. Treads destroyed. 03818_ K-01 Serf collects debris. 03818_ Cld. Ion Engine destroyed. 03818_ Imp. Assault Rifle destroyed. 03821_ K-01 Serf collects debris. 03824_ Ion Burst Cannon destroyed. 03824_ K-01 Serf collects debris. 03829_ R-06 Scavenger collects Aluminum Leg. 03830_ K-01 Serf collects debris. 03831_ System corrupted: Component data lost. 03832_ R-06 Scavenger collects Core Shielding. 03833_ K-01 Serf collects debris. 03837_ R-06 Scavenger collects Particle Gun. 03837_ K-01 Serf collects debris. 03838_ K-01 Serf destroyed. 03840_ R-06 Scavenger collects Wheel. Map ----- +----------------------------------------------------+ | ???????????""??"????????????????????????? | | ??????????"""??"????????????????????????? | | ??????????"??"""????????????????????????? | | ??????????"??""?????????????????????????? | | ??????????""""??????????????????????????? | | ???????????????????"""""????????????????? | | ???????????????????"""""????????????????? | | ???????????????????"""""????????????????? | | ????????????????????????????????????""??? | | ???????????????????"""""????????????T"??? | | ???????????????????"""""????"""?"""?""??? | | ???????????????????"""""????"""?"""?????? | | ????????????????????????????"""?"""?????? | | ????????????????????????????????????????? | | ????????????????????????????????????????? | | ????????????? ?????????????????????????? | | ????????????? ?????????????????????????? | | ????????????? ?????????????????????????? | | ?????????????# ?????????????????????????? | | ????????????##+########?????????????????? | | ???????????## #?????????????????? | | ???????????#T #?????????????????? | | ????????????# """"" #?????????????????? | | ????????????# """"" #?????????????????? | | ????????????#o"=%!" #?????????????????? | | ????????????# r=@[ Y ##?????#####??????? | | ????????????# =Y%! #?????#! !#??????? | | ????????????# *[ ! ##?????#! !#??????? | | ???# ########+############! !#?"""?"" | | ???# ## !#?"""?"" | | ???# T ##### ### ##?"""?"" | | ???# #???# # T#?"""?"" | | ???# ###########???# + ##?"""?"" | | ???## ???????????????# #####???????? | | ????# ?????????####### #######?????? | | ????# ?????????+ # | | ????# ?????????######## ######??????? | | ????# ????????????????# #???????????? | | ????# ????????????????# ####????????? | | ????# #????????????#### ##T###??????? | | ????# #????????????# + #??""??? | | ????# #????????????# ##### #####??"T??? | | ????# #????????????? ???## ##?????""??? | | ????# #????????????? ???# ###### | | ????# #####??###???? ???# % | | ????# # ??? #???# #??# ######+#??? | | ????# # """"? +??? #?###+####?????T?? | | ????# + "??"" #???# #?# | #??"""??? | | ????# # "??""" #???# #?#! ! #???????? | | ????# # """??" #???# #?# #???????? | +----------------------------------------------------+ Best States ------------- Heat Dissipation 45 Energy Generation 14 Energy Capacity 280 Matter Stores 300 Matter Capacity 300 Sight Range 16 Robot Scan Range 15 Terrain Scan Range 16 Terrain Scan Density 10 Armor Coverage 225 Evasion (%) 40 Recoil Reduction 4 Offensive Hacking 10 Item Schematics ----------------- Pulse Rifle | -9/Materials | Scanalyzed Imp. Assault Rifle | -9/Materials | Scanalyzed Robot Schematics ------------------ None Fabricated ------------ Nothing Repaired ---------- Nothing Alien Tech Used ----------------- None Achievements -------------- None Challenges ------------ None Game ------ Seed TargetingHeavyEdition Manual? 0 Play Time 00:21:16 Cumulative 109.9 hours Start 2025.05.22 @ 18:19:50 End 2025.05.22 @ 18:39:56 Sessions 1 Manual Loads 0 Difficulty Rogue Special Mode None Game No. 285 Rogue 285 Adventurer 0 Explorer 0 Win Type - Total 2 Types 2/0/0/0/0/0/0/0/0/0 Lore% 53 Gallery% 50 Achievement% 44 Wizard Run 0 Options --------- Layout 0 ASCII 0 Keyboard 0 Movement Numpad Keybinds 0 Fullscreen 2 Font 18/Terminus Map View 76x50 Zoom Use 0% Tactical HUD 1 Map Filters NONE Filters NONE Steam 1 RUN: f7af4ab1-d6e7-4086-add4-732ae8de5e9b